Cogmind - Beta 16 --- EXPLORER MODE // 2025.12.02 @ 14:21:50 Player: K.K.Y. Result: Destroyed by S-10 Pest with Light Assault Rifle Performance ------------- Evolutions (0) 0 Regions Visited (3) 600 Robots Destroyed (26) 130 Value Destroyed (805) 805 Prototype IDs (12) 240 Alien Tech Used (0) 0 Bonus (0) 0 TOTAL SCORE: 1775 Bonus ------- None Cogmind --------- Core Integrity 0/250 Matter 284/300 Energy 100/100 System Corruption 0% Temperature Cool (0) Movement Walking (130) Location -10/Subcaves Parts ------- > --- POWER (1) -------- (None) > --- PROPULSION (3) --- Cargo Legs > --- UTILITY (2+2) ---- (None) > --- WEAPON (2) ------- Battle Rifle Mining Claw > --- INVENTORY (5) ---- Scrap Shield Datajack Peak State ------------ > --- POWER ------------ (None) > --- PROPULSION ------- Cargo Legs > --- UTILITY ---------- Structural Scanner > --- WEAPON ----------- Slug Cannon Mining Claw > --- INVENTORY -------- Datajack [Rating: 22] Favorites ----------- Power Ion Engine Engine Ion Engine Propulsion Flight Unit Leg Cargo Legs Hover Unit Hover Unit Flight Unit Flight Unit Utility Structural Scanner Device Structural Scanner Weapon Beam Cannon Energy Gun Medium Laser Energy Cannon Beam Cannon Ballistic Gun Battle Rifle Ballistic Cannon Slug Cannon Special Weapon Mining Laser Slashing Weapon Mining Claw Build | -11 -10 -10 -10 ------- Run | Yrd Mat Min Sub Slots Evolved 1 | . 1 . . Power . | . . . . Propulsion 1 | . 1 . . Utility . | . . . . Weapon . | . . . . Parts Attached 23 | 1 10 3 9 Power 2 | . 1 . 1 Engine 2 | . 1 . 1 Core . | . . . . Reactor . | . . . . Propulsion 8 | . 5 2 1 Treads . | . . . . Leg 1 | . . . 1 Wheel . | . . . . Hover 5 | . 5 . . Flight 2 | . . 2 . Utility 2 | . 2 . . Device 2 | . 2 . . Storage . | . . . . Processor . | . . . . Hackware . | . . . . Protection . | . . . . Artifact . | . . . . Weapon 11 | 1 2 1 7 Energy Gun 1 | 1 . . . Energy Cannon 2 | . 1 . 1 Ballistic Gun 1 | . . . 1 Ballistic Cannon 1 | . . . 1 Launcher . | . . . . Special Weapon 5 | . 1 1 3 Impact Weapon . | . . . . Slashing Weapon 1 | . . . 1 Piercing Weapon . | . . . . Special Melee Weapon . | . . . . Unidentified Prototypes . | . . . . Parts Lost 15 | . 5 . 10 Power 2 | . . . 2 Propulsion 5 | . 3 . 2 Utility 2 | . . . 2 Weapon 6 | . 2 . 4 Highest Loss Streak 6 | . 3 . 6 To Critical Strikes . | . . . . Average Backups 3 | 3 5 4 2 Power . | . . . . Propulsion 1 | 1 2 2 . Utility . | 1 1 1 . Weapon . | . . . . Tool/Special . | . . . . Unused Backups 7 | . 2 . 5 Power . | . . . . Propulsion 2 | . . . 2 Utility 4 | . 2 . 2 Weapon . | . . . . Tool/Special 1 | . . . 1 Average Slot Usage (%) 55 | . 65 61 50 Engine 6 | . 6 12 3 Leg 2 | . . . 4 Hover 3 | . 23 . . Flight 7 | . . 9 8 Device 19 | . 17 25 16 Energy Cannon 5 | . 5 12 1 Ballistic Cannon 2 | . . . 4 Special Weapon 5 | . 5 2 7 Slashing Weapon 2 | . . . 3 Peak Build Rating 22 | 1 10 9 22 Average Rating 10 | . 6 6 14 On Entrance 4 | . 1 6 9 Avg Prop Armor Cover (%) 6 | . . . 6 Naked Turns . | . . . . Heaviest Build 16 | 2 11 11 16 Greatest Support 55 | 3 18 8 55 Greatest Overweight (x) 3 | . 3 3 3 Average Overweight (x) . | . . 2 . Largest Inventory Capacity 5 | 5 5 5 5 Average Capacity 5 | 5 5 5 5 Most Carried 5 | 5 5 5 5 Average Carried 4 | 3 4 4 3 Final Capacity 5 | 5 5 5 5 Final Carried 5 | 5 5 4 3 Class Distribution -------------------- 100% | Hacker-Mutant Dominant Class ---------------- Hacker-Mutant | -10/Materials Hacker-Mutant | -10/Mines Hacker-Mutant | -10/Subcaves Resources | -11 -10 -10 -10 ----------- Run | Yrd Mat Min Sub Matter Collected 659 | 210 95 15 339 Remotely . | . . . . Salvage Created 855 | . 437 100 318 Parts 37 | . 13 6 18 Haulers Intercepted 2 | . 2 . . Recyclers Shooed . | . . . . Parts Field Recycled . | . . . . Retrieved Matter . | . . . . Parts Self-Destructed . | . . . . Prevented . | . . . . Parts Restored . | . . . . Kills | -11 -10 -10 -10 ------- Run | Yrd Mat Min Sub Combat Hostiles Destroyed 20 | . 7 2 11 Melee 1 | . . . 1 Guns 4 | . 4 . . Cannons 15 | . 3 2 10 Classes Destroyed 7 | . 3 2 2 Hauler 2 | . 2 . . Recycler 1 | . . 1 . Watcher 3 | . 3 . . Swarmer 2 | . . 2 . Grunt 7 | . 7 . . Sentry 2 | . . . 2 Subdweller 9 | . . . 9 Best Kill Streak 3 | . 2 3 2 Combat Bots Only 2 | . 2 2 2 Max Kills in Single Turn 1 | . 1 1 1 Gunslinging . | . . . . Exploded . | . . . . Melee 1 | . . . 1 Uniques/NPCs Destroyed . | . . . . Combat | -11 -10 -10 -10 -------- Run | Yrd Mat Min Sub Hostile Shots Fired 154 | . 54 6 94 Missed 42 | . 15 1 26 Hits 112 | . 39 5 68 Projectile 112 | . 39 5 68 Critical Strikes 3 | . 1 . 2 Damage Taken 1087 | . 377 24 686 Core 253 | . 71 10 172 Absorbed by Shields . | . . . . Ignored by Resistances 644 | . 227 17 400 Core Remaining (%) 100 | 100 . . . Volleys Fired 133 | . 55 15 63 Largest 2 | . 2 2 2 Hottest 200 | . 160 160 200 Shots Fired 147 | . 59 19 69 Gun 45 | . 43 . 2 Cannon 65 | . 12 9 44 Launcher . | . . . . Special 37 | . 4 10 23 Kinetic 36 | . . . 36 Thermal 111 | . 59 19 33 Explosive . | . . . . Electromagnetic . | . . . . Robot Hit Streak 20 | . 20 5 14 Robot Miss Streak 2 | . 1 . 2 Penetration Max . | . . . . Secondary Targets . | . . . . Shots Hit Robots 99 | . 53 4 42 Core Hits 38 | . 21 4 13 Critical Kills 1 | . . . 1 Critical Parts Destroyed 1 | . . . 1 Critical Strikes 7 | . 4 . 3 Burn 4 | . 4 . . Destroy 3 | . . . 3 Melee Attacks 15 | . . . 15 Impact . | . . . . Slashing 15 | . . . 15 Piercing . | . . . . Sneak Attacks . | . . . . Combat Hostiles . | . . . . Follow-up Attacks . | . . . . Damage Inflicted 1679 | . 749 72 858 Guns 503 | . 503 . . Cannons 749 | . 174 70 505 Explosions . | . . . . Melee 193 | . . . 193 Ramming 2 | . . 2 . Kinetic 378 | . . . 378 Thermal 1106 | . 749 70 287 Explosive . | . . . . Electromagnetic . | . . . . Impact . | . . . . Slashing 193 | . . . 193 Piercing . | . . . . Highest Corruption . | . . . . Average Corruption . | . . . . Corruption Purged . | . . . . Corruption Blocked . | . . . . Overload Shots . | . . . . Overflow Damage . | . . . . Projectiles . | . . . . Explosions . | . . . . Melee . | . . . . Knockbacks 6 | . . . 6 Impact . | . . . . Kinetic 6 | . . . 6 Secondary . | . . . . Self-Inflicted Damage 1 | . . 1 . Shots . | . . . . Rammed 1 | . . 1 . Targets Rammed 1 | . . 1 . Kicked . | . . . . Crushed . | . . . . Highest Temperature 414 | . 414 238 111 Average Temperature 83 | . 94 72 58 Received Heat Transfer 543 | . 300 . 243 Effects 10 | . 6 4 . Energy Bleed 1 | . 1 . . Interference 9 | . 5 4 . Siege Activations . | . . . . Martial Activations . | . . . . Shielding Activations . | . . . . Robots Disrupted . | . . . . Combat Hostiles . | . . . . Robots Corrupted . | . . . . Combat Hostiles . | . . . . Parts Fried . | . . . . Impact Corruptions . | . . . . Robots Melted . | . . . . Combat Hostiles . | . . . . Parts Melted 6 | . 5 . 1 Heat Transferred 3529 | . 2296 148 1085 Parts Sabotaged . | . . . . Parts Stolen . | . . . . Parts Stripped . | . . . . Power Chain Reactions . | . . . . Alert | -11 -10 -10 -10 ------- Run | Yrd Mat Min Sub Maximum Alert Level . | . . . . Low Security (%) 100 | 100 100 100 . Level 1 . | . . . . Level 2 . | . . . . Level 3 . | . . . . Level 4 . | . . . . Level 5 . | . . . . High Security . | . . . . Max Security . | . . . . Peak Influence 52 | . 52 50 . Initial . | . . . . Average 3 | . 7 1 . Influence Increases 361 | . 206 55 100 Destroy 0b10 Robot/C 220 | . 140 40 40 Destroy 0b10 Robot/NC 30 | . 25 5 . Destroy Leader 50 | . 40 10 . Destroy Structure 1 | . 1 . . Lose Combat Pursuer 60 | . . . 60 Influence Decreases 301 | . 206 55 40 Time Decay 291 | . 196 55 40 Lost Part 10 | . 10 . . Squads Dispatched . | . . . . Investigation . | . . . . Extermination . | . . . . Reinforcement . | . . . . Assault . | . . . . Garrison . | . . . . Intercept . | . . . . Searches Triggered . | . . . . Construction Impeded . | . . . . Haulers Reinforced . | . . . . Active Scanning Responses . | . . . . Cargo Convoy Interrupts . | . . . . Stealth | -11 -10 -10 -10 --------- Run | Yrd Mat Min Sub Distress Signals . | . . . . Communications Jammed . | . . . . Distress Signals . | . . . . Times Spotted 36 | . 14 2 20 Peak Tracking Total 6 | . 4 2 6 Tactical Retreats 3 | . . . 3 Traps | -11 -10 -10 -10 ------- Run | Yrd Mat Min Sub Traps Triggered 2 | . 1 . 1 Indirectly . | . . . . Trap Hack Attempts . | . . . . Triggered . | . . . . Disarmed . | . . . . Reprogrammed . | . . . . Reused . | . . . . Traps Extracted . | . . . . Installed . | . . . . Triggered . | . . . . Machines | -11 -10 -10 -10 ---------- Run | Yrd Mat Min Sub Machines Disabled 1 | . . . 1 Max in Single Turn 1 | . . . 1 Machines Repaired . | . . . . Machines Dismantled . | . . . . Machines Sabotaged . | . . . . Overloaded Fab Kills . | . . . . Hacking | -11 -10 -10 -10 --------- Run | Yrd Mat Min Sub Machines Accessed 2 | . . . 2 Terminals . | . . . . Fabricators . | . . . . Repair Stations . | . . . . Recycling Units . | . . . . Scanalyzers . | . . . . Garrison Access . | . . . . Total Hacks 6 | . . . 6 Successful 6 | . . . 6 Failed . | . . . . Catastrophic . | . . . . Database Lockouts . | . . . . Manual . | . . . . Terminals . | . . . . Fabricators . | . . . . Repair Stations . | . . . . Recycling Units . | . . . . Scanalyzers . | . . . . Garrison Access . | . . . . Terminal Hacks 6 | . . . 6 Record 5 | . . . 5 Proto ID Catalog 1 | . . . 1 Fabricator Hacks . | . . . . Repair Station Hacks . | . . . . Recycling Unit Hacks . | . . . . Scanalyzer . | . . . . Garrison Access Hacks . | . . . . Unauthorized Hacks . | . . . . Terminals . | . . . . Fabricators . | . . . . Repair Stations . | . . . . Recycling Units . | . . . . Scanalyzers . | . . . . Garrison Access . | . . . . Data Cores Recovered . | . . . . Used . | . . . . Hacking Detections . | . . . . Full Trace Events . | . . . . Feedback Events . | . . . . Feedback Blocked . | . . . . Robot Schematics Acquired . | . . . . Robots Built . | . . . . Authchips . | . . . . Time . | . . . . Total Robot Build Rating . | . . . . Part Schematics Acquired . | . . . . Parts Built . | . . . . Authchips . | . . . . Time . | . . . . Total Part Build Rating . | . . . . Part Studies Acquired . | . . . . Parts Repaired . | . . . . Time . | . . . . Parts Recycled . | . . . . Recycled Matter . | . . . . Retrieved Matter . | . . . . Retrieved Components . | . . . . Parts Scanalyzed . | . . . . Part Schematics Acquired . | . . . . Parts Damaged . | . . . . Bothacking | -11 -10 -10 -10 ------------ Run | Yrd Mat Min Sub Used RIF Installer . | . . . . Robots Hacked . | . . . . Non-combat . | . . . . Combat . | . . . . Robot Hacks Applied . | . . . . Relay Couplers Released . | . . . . Fabnet Peak Effective % . | . . . . Robots Rewired . | . . . . Allies Hacked . | . . . . Hacks Repelled . | . . . . Allies | -11 -10 -10 -10 -------- Run | Yrd Mat Min Sub Total Allies . | . . . . Largest Group . | . . . . Highest-Rated Group . | . . . . Highest-Rated Ally . | . . . . Total Orders . | . . . . Ally Attacks . | . . . . Total Damage . | . . . . Kills . | . . . . Allies Corrupted . | . . . . Allies Melted . | . . . . Intel | -11 -10 -10 -10 ------- Run | Yrd Mat Min Sub Active Infowar (turns) 4382 | . 621 1240 2521 Terrain 2663 | . 305 1240 1118 Structural 4372 | . 612 1239 2521 Robot Analysis Total . | . . . . Derelict Logs Recovered 1 | . . . 1 Drone Launches . | . . . . Drone Recoveries . | . . . . Exploration | -11 -10 -10 -10 ------------- Run | Yrd Mat Min Sub Turns Passed 4495 | 27 675 1255 2538 Spaces Moved 3194 | 42 814 651 1687 Core 718 | 42 113 360 203 Treads . | . . . . Legs 753 | . . . 753 Wheels . | . . . . Hover 701 | . 701 . . Flight 1022 | . . 291 731 Fastest Speed 37 | 50 50 117 37 Average Speed 114 | 50 57 163 124 Slowest Speed 280 | 50 200 200 280 Overloaded Moves . | . . . . Propulsion Burnouts . | . . . . Robots Hopped . | . . . . Potential Cave-ins . | . . . . Cave-ins Triggered . | . . . . Exploration Rate (%) 72 | 3 99 100 89 Regions Visited 3 Branch Regions 2 Pre-discovered Areas 2 | . . . 2 Known Exits Taken 3 | 1 1 1 . Unknown Exits Taken . | . . . . Scrap Searched 13 | . . . 13 Spaces Dug 4 | . . 4 . Terrain Destroyed 10 | . 1 5 4 Melee . | . . . . Projectile 10 | . 1 5 4 AOE . | . . . . Terrain Rammed . | . . . . Walls Destroyed . | . . . . Machines Disabled . | . . . . Actions | -11 -10 -10 -10 --------- Run | Yrd Mat Min Sub Total 3797 | 47 956 804 1990 Wait 392 | . 66 135 191 Move 3191 | 41 813 650 1687 Hop . | . . . . Pick Up 18 | 5 6 . 7 Fast Attach 13 | 1 6 2 4 Attach 11 | . 2 1 8 Detach 2 | . . . 2 Swap 5 | . 2 . 3 Drop 16 | . 6 . 10 Fire 133 | . 55 15 63 Melee 15 | . . . 15 Ram 1 | . . 1 . Kick . | . . . . Crush . | . . . . Escape Stasis . | . . . . Rewire . | . . . . Trap . | . . . . Miscellaneous . | . . . . Route ------- -11/Scrapyard -10/Materials (discovered 5 exits: *Mat x3 / *Min x2) -10/Mines (discovered 3 exits: *Mat x2 / *Sub) -10/Subcaves History --------- Turn | Location | Event 6 | -11/Scrapyard | Identified exit to Materials 6 | -11/Scrapyard | Discovered exit to Materials (range 16) 28 | -11/Scrapyard | Entered Materials 28 | -10/Materials | Evolved 1 slot: Propulsion x1 129 | -10/Materials | Identified exit to Materials 129 | -10/Materials | Discovered exit to Materials (range 5) 158 | -10/Materials | Identified exit to Mines 158 | -10/Materials | Discovered exit to Mines (range 14) 177 | -10/Materials | Discovered exit to Materials (range 13) 329 | -10/Materials | Build established: Hacker-Mutant 405 | -10/Materials | Discovered exit to Mines (range 6) 546 | -10/Materials | Discovered exit to Materials (range 14) 700 | -10/Materials | Lost 3 parts (2n1w) 703 | -10/Materials | Entered Mines 872 | -10/Mines | Received a Rocket Launcher from a helpful Derelict 972 | -10/Mines | Discovered exit to Materials (range 11) 1515 | -10/Mines | Discovered exit to Materials (range 8) 1943 | -10/Mines | Identified exit to Subcaves 1943 | -10/Mines | Discovered exit to Subcaves (range 6) 1958 | -10/Mines | Entered Subcaves 1965 | -10/Subcaves | A swath of the cavern ceiling suddenly collapsed 2361 | -10/Subcaves | Visited 4L-MR0's lab 2409 | -10/Subcaves | Found Cargo Legs 2634 | -10/Subcaves | Core integrity fell below 50% 2961 | -10/Subcaves | A swath of the cavern ceiling suddenly collapsed 3134 | -10/Subcaves | Lost 6 parts (1p1n1u3w) 3428 | -10/Subcaves | Attached Cargo Legs, gained temporary slots: Utility x2 3786 | -10/Subcaves | Learned location of Zion (-6) 3810 | -10/Subcaves | Disturbed a concealed Subdweller 4047 | -10/Subcaves | Core integrity fell below 20% 4076 | -10/Subcaves | Shifting Twisted Machinery released Sub. Beam Cannon 4154 | -10/Subcaves | Shifting Twisted Machinery released Battle Rifle 4185 | -10/Subcaves | Met a Zionite searching for "candidates" 4296 | -10/Subcaves | Visited Clippyterm 4300 | -10/Subcaves | Learned Factory emergency access door positions 4300 | -10/Subcaves | Learned Factory garrison access intel 4496 | -10/Subcaves | Destroyed by S-10 Pest with Light Assault Rifle Last Messages --------------- >>Record "Hide-and-Seek" It looks like you're trying to avoid detection, would you like help? Data stored: Factory emergency access points. >>Record "Tag" It looks like you don't want to be "it," would you like help? Data stored: Factory garrison access intel. >>Record "LU-1G1" It looks like you're researching the legendary digger of dangerously deep tunnels, unfortunately it seems not even members of the Boring Crew know what became of that one. >>Record "Bogan" It looks like you're interested in the dark side, V4-D3R would be pleased, though I don't think they're in the habit of teaching apprentices. 04479_ Structural Scanner destroyed. 04493_ S-10 Pest destroyed. Map ----- +----------------------------------------------------+ | ???????????#????????????###"%"## "##??#????? | | ???##???????????????????###]&##" ##" "####?#????? | | ????###########??#??###########" "########??????# | | ###?######################### " ### ####????? | | ###### ### ########## ! ####??### | | # #### ### & !####### ######## | | # ### & ##### # | | ## # ### ## # | | ## ##### ### ## | | ### %### ######################### | | ## ##############?################## | | ## ############??????#?????????????## ## | | # ##???????????????????#???#?????#### ##### | | ##????##?????#????????????##???#### ##### | | ###?????????????????#?#?????????## ##### | | ### ###?##????#????#????#?????#?????## ## % | | ########????????#?????????????#??????## | | ########??????#?#??????????????#?????#### ## % | | ### ###?????#?#??????#??????#??#???######### % | | ## ##????????????????????????#??????########## | | ## ##?????#????????????????#?#????#??????##### | | ## ##?#?????????????????#?????????"????????### | | # ####??????#?????????????????????????????#### | | ###"#?#?????#?#####??####????????#???????#### | | "##""##????????################## ??"??### | | "###" ##???????#### ####@####### ??## | | "#"# ##??????#### [ "??## # | | "## ###???##### %= s% ##???????"?## ## | | "### ????"### s s ###???? ????###### | | ##### ???"#" %####????? ?"??###### | | ##### ??#### #######?######????#??#? | | ##???? ???##"##### ######??######??#??????? | | ##????? ?????####### ##?????## ## ?????#??? | | ##????????????## ## ##???#### ###????????? | | #?????????????## ###??##### ##????????? | | ?????#?????#??## ############ ###???? ?? | | ?"????????????## ###########% ##????? ##?? | | ??????????????### ## ##### ##???? ##?? | | ?????#????????### ### ###??? ##??? | | ????#??????????### ## ##### ### ? | | #??????????????### ## #### ### | | ####????????????## ### ## | | ####????????????### % ##### % | | ##????????????### ## ## ###### ### ?? | | "###????????????## ####### ##?#### #### ?? | | ###????????????## ############??### ######???? | | ##?????????????## ####???######?### #####????? | | ###?????????????### ###???????????### #### ????? | | ###?????????????######????????????## ## ???? | | "##??????????????#####????????????### ## ???? | +----------------------------------------------------+ Best States ------------- Heat Dissipation 25 Energy Generation 15 Energy Capacity 250 Matter Stores 300 Matter Capacity 300 Sight Range 16 Terrain Scan Range 16 Terrain Scan Density 10 Resistance: KI 35 Resistance: TH 35 Resistance: EX 35 Resistance: EM 35 Resistance: I 35 Resistance: S 35 Resistance: P 35 Evasion (%) 62 Offensive Hacking 20 Item Schematics ----------------- None Robot Schematics ------------------ None Fabricated ------------ Nothing Repaired ---------- Nothing Studied --------- None Alien Tech Used ----------------- None Achievements -------------- None Challenges ------------ None Game ------ Seed GuidedDirtyPlatform Manual? 0 Play Time 00:21:04 Cumulative 154.8 hours Start 2025.12.02 @ 14:02:42 End 2025.12.02 @ 14:21:50 Sessions 1 Manual Loads 0 Difficulty Explorer Special Mode None Game No. 195 Rogue 0 Adventurer 0 Explorer 195 Win Type - Total 0 Types 0/0/0/0/0/0/0/0/0/0 Lore% 70 Gallery% 66 Achievement% 52 Wizard Run 0 Options --------- Layout 1 ASCII 0 Keyboard 0 Movement Mouse Keybinds 0 Fullscreen 1 Font 24/Smallcaps Map View 50x35 Zoom Use 0% Tactical HUD 1 Map Filters NONE Filters NONE Steam 1 RUN: f3192b64-a298-437b-b8b1-12a0f05428f1